fUSD/lending_fUSD_20260624
["ID","MTS","AMOUNT","RATE_DAILY","PERIOD"]
[426282029,1782240642000,-217.54705075,0.0001,2]
[426282004,1782240642000,-2000.0,9.247e-05,2]
[426282014,1782240642000,-234.68047798,9.63e-05,2]
[426282005,1782240642000,-1000.0,9.254e-05,2]
[426282008,1782240642000,-500.0,9.315e-05,2]
[426282007,1782240642000,-236.977,9.315e-05,2]
[426282016,1782240642000,-147962.5,9.859e-05,2]
[426282011,1782240642000,-500.0,9.589e-05,2]
[426282013,1782240642000,-170.04,9.627e-05,2]
[426282009,1782240642000,-278.23164069,9.552e-05,2]
[426282010,1782240642000,-174.87,9.589e-05,2]
[426282012,1782240642000,-170.04,9.627e-05,2]
[426282015,1782240642000,-46528.03554069,9.687e-05,2]
[426282032,1782240642000,-216.15929938,0.0001,2]
[426282006,1782240642000,-3376.247,9.315e-05,2]
[426282019,1782240642000,-350.0,9.994e-05,2]
[426282018,1782240642000,-500.0,9.863e-05,2]
[426282020,1782240642000,-350.0,9.997e-05,2]
[426282017,1782240642000,-147962.5,9.859e-05,2]
[426282022,1782240642000,-151.0,0.0001,2]
[426282024,1782240642000,-331.62704682,0.0001,2]
[426282025,1782240642000,-1323.72476442,0.0001,2]
[426282023,1782240642000,-187.98456026,0.0001,2]
[426282026,1782240642000,-600.0,0.0001,3]
[426282027,1782240642000,-217.54705075,0.0001,2]
[426282030,1782240642000,-214.0,0.0001,2]
[426282031,1782240642000,-214.0,0.0001,2]
[426282021,1782240642000,-150001.0,0.0001,2]
[426282060,1782240642000,-5529.0,0.000106,3]
[426282107,1782240642000,-666.0,0.00011098,2]
[426282059,1782240642000,-157.75999868,0.0001058,2]
[426282091,1782240642000,-378.0,0.0001102,2]
[426282095,1782240642000,-378.0,0.00011042,2]
[426282096,1782240642000,-378.0,0.00011045,2]
[426282094,1782240642000,-378.0,0.00011042,2]
[426282092,1782240642000,-2798.14717377,0.0001103,2]
[426282101,1782240642000,-378.0,0.00011073,2]
[426282105,1782240642000,-300.0,0.00011098,2]
[426282102,1782240642000,-317.59444584,0.00011098,2]
[426282108,1782240642000,-672.48135843,0.00011098,2]
[426282106,1782240642000,-666.0,0.00011098,2]
[426282104,1782240642000,-666.0,0.00011098,2]
[426282100,1782240642000,-166.66,0.00011068,2]
[426282093,1782240642000,-1892.09,0.0001103,2]
[426282103,1782240642000,-666.0,0.00011098,2]
[426282122,1782240642000,-19831.33042199,0.00011099,2]
[426282111,1782240642000,-10882.92885743,0.00011099,2]
[426282110,1782240642000,-10882.92885743,0.00011099,2]
[426282115,1782240642000,-19831.33042203,0.00011099,2]
[426282123,1782240642000,-20000.0,0.00011099,2]
[426282113,1782240642000,-10882.92885743,0.00011099,2]
[426282119,1782240642000,-19831.33042199,0.00011099,2]
[426282117,1782240642000,-19831.33042199,0.00011099,2]
[426282112,1782240642000,-10882.92885743,0.00011099,2]
[426282114,1782240642000,-10882.92885743,0.00011099,2]
[426282120,1782240642000,-19831.33042199,0.00011099,2]
[426282121,1782240642000,-19831.33042199,0.00011099,2]
[426282109,1782240642000,-10882.92885746,0.00011099,2]
[426282090,1782240642000,-378.0,0.00011015,2]
[426282057,1782240642000,-1892.09,0.00010529,2]
[426282098,1782240642000,-378.0,0.00011054,2]
[426282088,1782240642000,-243.19,0.00010989,2]
[426282058,1782240642000,-350.0,0.00010548,2]
[426282065,1782240642000,-1892.09,0.00010779,2]
[426282066,1782240642000,-2000.0,0.000108,2]
[426282069,1782240642000,-2798.14717377,0.000109,2]
[426282067,1782240642000,-350.0,0.00010862,2]
[426282075,1782240642000,-200.0,0.00010959,2]
[426282068,1782240642000,-250.0,0.00010889,2]
[426282074,1782240642000,-200.0,0.00010959,2]
[426282073,1782240642000,-200.0,0.00010959,2]
[426282070,1782240642000,-2798.14717377,0.000109,2]
[426282072,1782240642000,-200.0,0.00010959,2]
[426282076,1782240642000,-200.0,0.00010959,2]
[426282071,1782240642000,-295.96927128,0.0001093,2]
[426282084,1782240642000,-248.053883,0.00010959,2]
[426282089,1782240642000,-2000.0,0.00011,2]
[426282077,1782240642000,-200.0,0.00010959,2]
[426282099,1782240642000,-378.0,0.00011062,2]
[426282097,1782240642000,-378.0,0.0001105,2]
[426282082,1782240642000,-151.0,0.00010959,2]
[426282078,1782240642000,-174.87,0.00010959,2]
[426282086,1782240642000,-237.69,0.00010989,2]
[426282080,1782240642000,-166.66,0.00010959,2]
[426282085,1782240642000,-260.19,0.00010959,2]
[426282081,1782240642000,-150.0,0.00010959,2]
[426282079,1782240642000,-150.0,0.00010959,2]
[426282083,1782240642000,-151.0,0.00010959,2]
[426282087,1782240642000,-410.24,0.00010989,2]
[426282170,1782240643000,-378.0,0.00011283,2]
[426282171,1782240643000,-166.66,0.00011288,2]
[426282169,1782240643000,-378.0,0.00011275,2]
[426282180,1782240643000,-378.0,0.00011372,2]
[426282165,1782240643000,-378.0,0.00011254,2]
[426282159,1782240643000,-378.0,0.00011238,2]
[426282164,1782240643000,-378.0,0.00011253,2]
[426282167,1782240643000,-378.0,0.00011261,2]
[426282168,1782240643000,-378.0,0.00011268,2]
[426282158,1782240643000,-378.0,0.00011232,2]
[426282181,1782240643000,-378.0,0.00011374,2]
[426282166,1782240643000,-378.0,0.00011258,2]
[426282173,1782240643000,-378.0,0.00011291,2]
[426282193,1782240643000,-168.70853417,0.00011537,2]
[426282174,1782240643000,-378.0,0.00011299,2]
[426282175,1782240643000,-2000.0,0.00011301,2]
[426282177,1782240643000,-378.0,0.00011331,2]
[426282178,1782240643000,-378.0,0.00011347,2]
[426282176,1782240643000,-378.0,0.00011309,2]
[426282179,1782240643000,-378.0,0.00011356,2]
[426282182,1782240643000,-166.66,0.00011397,2]
[426282183,1782240643000,-1864.70985113,0.000114,2]
[426282185,1782240643000,-378.0,0.00011411,2]
[426282184,1782240643000,-378.0,0.00011408,2]
[426282186,1782240643000,-378.0,0.0001142,2]
[426282188,1782240643000,-1323.72476441,0.00011471,2]
[426282161,1782240643000,-378.0,0.0001125,2]
[426282172,1782240643000,-378.0,0.00011288,2]
[426282157,1782240643000,-378.0,0.00011227,2]
[426282153,1782240643000,-378.0,0.00011221,2]
[426282162,1782240643000,-378.0,0.00011252,2]
[426282125,1782240643000,-378.0,0.00011131,2]
[426282124,1782240643000,-260.71126703,0.00011128,2]
[426282127,1782240643000,-208.14044525,0.00011137,2]
[426282130,1782240643000,-156.7176936,0.00011137,2]
[426282136,1782240643000,-378.0,0.00011169,2]
[426282132,1782240643000,-309.23349599,0.00011137,2]
[426282133,1782240643000,-378.0,0.00011139,2]
[426282135,1782240643000,-378.0,0.00011151,2]
[426282134,1782240643000,-268.0,0.00011149,2]
[426282140,1782240643000,-1277.0,0.00011191,2]
[426282138,1782240643000,-500.0,0.00011178,2]
[426282139,1782240643000,-3565.248,0.00011191,2]
[426282137,1782240643000,-166.66,0.00011178,2]
[426282141,1782240643000,-1361.0,0.00011191,2]
[426282143,1782240643000,-385.0,0.00011191,2]
[426282154,1782240643000,-943.77,0.00011227,2]
[426282142,1782240643000,-1234.989,0.00011191,2]
[426282190,1782240643000,-150.49757157,0.00011477,2]
[426282155,1782240643000,-2416.35,0.00011227,2]
[426282148,1782240643000,-378.0,0.00011197,2]
[426282144,1782240643000,-150.0,0.00011191,2]
[426282146,1782240643000,-935.0,0.00011191,2]
[426282151,1782240643000,-5529.0,0.000112,5]
[426282147,1782240643000,-216.0,0.00011191,2]
[426282145,1782240643000,-200.0,0.00011191,2]
[426282152,1782240643000,-378.0,0.00011216,2]
[426282150,1782240643000,-378.0,0.00011198,2]
[426282156,1782240643000,-44262.5,0.00011227,2]
[426282160,1782240643000,-378.0,0.00011247,2]
[426282163,1782240643000,-378.0,0.00011252,2]
[426282192,1782240643000,-2151.44,0.00011507,2]
[426282195,1782240643000,-147962.5,0.00011577,2]
[426282189,1782240643000,-1867.40645961,0.00011477,2]
[426282224,1782240643000,-3970.77,0.00011598,2]
[426282230,1782240643000,-3970.77,0.00011598,2]
[426282227,1782240643000,-3970.77,0.00011598,2]
[426282229,1782240643000,-3970.77,0.00011598,2]
[426282226,1782240643000,-3970.77,0.00011598,2]
[426282225,1782240643000,-3970.77,0.00011598,2]
[426282228,1782240643000,-3970.77,0.00011598,2]
[426282233,1782240643000,-3970.77,0.00011598,2]
[426282187,1782240643000,-378.0,0.00011422,2]
[426282237,1782240643000,-3970.77,0.00011598,2]
[426282235,1782240643000,-3970.77,0.00011598,2]
[426282243,1782240643000,-3970.77,0.00011598,2]
[426282240,1782240643000,-3970.77,0.00011598,2]
[426282220,1782240643000,-3970.77,0.00011598,2]
[426282244,1782240643000,-3970.77,0.00011598,2]
[426282239,1782240643000,-3970.77,0.00011598,2]
[426282238,1782240643000,-3970.77,0.00011598,2]
[426282242,1782240643000,-3970.77,0.00011598,2]
[426282241,1782240643000,-3970.77,0.00011598,2]
[426282245,1782240643000,-3970.77,0.00011598,2]
[426282246,1782240643000,-3970.77,0.00011598,2]
[426282247,1782240643000,-153030.0,0.00011599,2]
[426282251,1782240643000,-151.0,0.00011701,2]
[426282252,1782240643000,-151.0,0.00011701,2]
[426282253,1782240643000,-151.0,0.00011701,2]
[426282250,1782240643000,-151.0,0.00011701,2]
[426282249,1782240643000,-1707.75,0.000117,2]
[426282248,1782240643000,-17786.3953416,0.00011599,2]
[426282234,1782240643000,-3970.77,0.00011598,2]
[426282222,1782240643000,-3970.77,0.00011598,2]
[426282236,1782240643000,-3970.77,0.00011598,2]
[426282223,1782240643000,-3970.77,0.00011598,2]
[426282191,1782240643000,-166.66,0.00011507,2]
[426282206,1782240643000,-3970.77,0.00011598,2]
[426282205,1782240643000,-3970.77,0.00011598,2]
[426282231,1782240643000,-3970.77,0.00011598,2]
[426282194,1782240643000,-262.52532945,0.00011537,2]
[426282200,1782240643000,-3970.77,0.00011598,2]
[426282201,1782240643000,-3970.77,0.00011598,2]
[426282198,1782240643000,-3970.77,0.00011598,2]
[426282199,1782240643000,-3970.77,0.00011598,2]
[426282197,1782240643000,-3970.77,0.00011598,2]
[426282196,1782240643000,-147962.5,0.00011577,2]
[426282204,1782240643000,-3970.77,0.00011598,2]
[426282203,1782240643000,-3970.77,0.00011598,2]
[426282207,1782240643000,-3970.77,0.00011598,2]
[426282202,1782240643000,-3970.77,0.00011598,2]
[426282217,1782240643000,-3970.77,0.00011598,2]
[426282221,1782240643000,-3970.77,0.00011598,2]
[426282232,1782240643000,-3970.77,0.00011598,2]
[426282215,1782240643000,-3970.77,0.00011598,2]
[426282214,1782240643000,-3970.77,0.00011598,2]
[426282216,1782240643000,-3970.77,0.00011598,2]
[426282219,1782240643000,-3970.77,0.00011598,2]
[426282218,1782240643000,-3970.77,0.00011598,2]
[426282211,1782240643000,-3970.77,0.00011598,2]
[426282213,1782240643000,-3970.77,0.00011598,2]
[426282210,1782240643000,-3970.77,0.00011598,2]
[426282212,1782240643000,-3970.77,0.00011598,2]
[426282208,1782240643000,-3970.77,0.00011598,2]
[426282209,1782240643000,-3970.77,0.00011598,2]
[426282255,1782240644000,-516.35791562,0.00011781,2]
[426282256,1782240644000,-4084.49012683,0.0001189,2]
[426282254,1782240644000,-151.0,0.00011701,2]
[426282259,1782240645000,-151.0,0.00011015,2]
[426282260,1782240645000,-155.74593396,0.0001189,2]
[426282270,1782240646000,-5613.97018752,0.00011191,2]
[426282267,1782240646000,-2643.47269667,0.0001189,2]
[426282269,1782240646000,-427.87278049,0.00011191,2]
[426282264,1782240646000,-544.68,0.0001172,2]
[426282266,1782240646000,-9192.00353989,0.0001189,2]
[426282265,1782240646000,-374.32,0.0001189,2]
[426282271,1782240836000,-500.0,5.526e-05,2]
[426282272,1782240851000,-200.0,5.479e-05,2]
[426282273,1782240851000,-300.0,5.526e-05,2]
[426282274,1782240890000,-153.5943921,5.503e-05,2]
[426282275,1782240905000,-500.0,5.525e-05,2]
[426282276,1782240943000,-500.0,5.524e-05,2]
[426282277,1782240959000,-446.01773751,5.524e-05,2]
[426282278,1782240997000,-500.0,5.524e-05,2]
[426282279,1782241014000,-500.0,5.524e-05,2]
[426282280,1782241050000,-150.0,5.523e-05,2]
[426282282,1782241068000,-300.0,5.523e-05,2]
[426282283,1782241104000,-500.0,5.524e-05,2]
[426282291,1782241158000,-500.0,5.524e-05,2]
[426282292,1782241211000,-544.88482264,5.523e-05,2]
[426282295,1782241265000,-1028.80650673,5.523e-05,2]
[426282297,1782241281000,-991.49189676,5.523e-05,2]
[426282306,1782241381000,50000.0,5.524e-05,4]
[426282304,1782241381000,50000.0,5.524e-05,4]
[426282305,1782241381000,50000.0,5.524e-05,4]
[426282303,1782241381000,13822.27944469,5.524e-05,4]
[426282309,1782241463000,-1254.41808677,5.524e-05,4]
[426282310,1782241479000,-1254.41808677,5.524e-05,4]
[426282311,1782241494000,-244.13144387,5.523e-05,2]
[426282312,1782241548000,-381.41937584,5.523e-05,2]
[426282314,1782241601000,-150.0,5.523e-05,2]
[426282316,1782241608000,-192.26454395,5.523e-05,2]
[426282315,1782241608000,-150.0,5.523e-05,2]
[426282317,1782241654000,-250.0,5.523e-05,2]
[426282318,1782241708000,-500.0,5.524e-05,4]
[426282319,1782241726000,-500.0,5.524e-05,4]
[426282320,1782241741000,-500.0,5.523e-05,2]
[426282321,1782241758000,-500.0,5.524e-05,4]
[426282323,1782241765000,-259.7247336,5.524e-05,4]
[426282322,1782241765000,-500.0,5.523e-05,2]
[426282325,1782241769000,-3839.7799711,5.524e-05,4]
[426282324,1782241769000,-844.24325565,5.524e-05,4]
[426282327,1782241795000,-197.62418401,5.524e-05,4]
[426282326,1782241795000,-3933.46043563,5.524e-05,4]
[426282348,1782241832000,-500.0,5.524e-05,2]
[426282350,1782241832000,-500.0,5.524e-05,2]
[426282362,1782241832000,-500.0,5.524e-05,2]
[426282364,1782241832000,-500.0,5.524e-05,2]
[426282360,1782241832000,-500.0,5.524e-05,2]
[426282349,1782241832000,-500.0,5.524e-05,2]
[426282359,1782241832000,-500.0,5.524e-05,2]
[426282347,1782241832000,-500.0,5.524e-05,2]
[426282343,1782241832000,-500.0,5.524e-05,2]
[426282344,1782241832000,-500.0,5.524e-05,2]
[426282342,1782241832000,-500.0,5.524e-05,2]
[426282341,1782241832000,-500.0,5.524e-05,2]
[426282338,1782241832000,-500.0,5.524e-05,2]
[426282339,1782241832000,-500.0,5.524e-05,2]
[426282340,1782241832000,-500.0,5.524e-05,2]
[426282336,1782241832000,-150.0,5.524e-05,2]
[426282337,1782241832000,-307.73545605,5.524e-05,2]
[426282335,1782241832000,-20874.76560139,5.524e-05,4]
[426282334,1782241832000,-25155.53714199,5.524e-05,4]
[426282346,1782241832000,-500.0,5.524e-05,2]
[426282351,1782241832000,-500.0,5.524e-05,2]
[426282345,1782241832000,-500.0,5.524e-05,2]
[426282352,1782241832000,-500.0,5.524e-05,2]
[426282382,1782241832000,-500.0,5.524e-05,2]
[426282379,1782241832000,-500.0,5.524e-05,2]
[426282381,1782241832000,-500.0,5.524e-05,2]
[426282380,1782241832000,-500.0,5.524e-05,2]
[426282377,1782241832000,-500.0,5.524e-05,2]
[426282353,1782241832000,-500.0,5.524e-05,2]
[426282376,1782241832000,-500.0,5.524e-05,2]
[426282372,1782241832000,-590.56340219,5.524e-05,2]
[426282373,1782241832000,-500.0,5.524e-05,2]
[426282374,1782241832000,-500.0,5.524e-05,2]
[426282375,1782241832000,-500.0,5.524e-05,2]
[426282370,1782241832000,-500.0,5.524e-05,2]
[426282378,1782241832000,-500.0,5.524e-05,2]
[426282371,1782241832000,-500.0,5.524e-05,2]
[426282368,1782241832000,-500.0,5.524e-05,2]
[426282369,1782241832000,-500.0,5.524e-05,2]
[426282367,1782241832000,-500.0,5.524e-05,2]
[426282366,1782241832000,-500.0,5.524e-05,2]
[426282357,1782241832000,-500.0,5.524e-05,2]
[426282355,1782241832000,-500.0,5.524e-05,2]
[426282383,1782241832000,-500.0,5.524e-05,2]
[426282392,1782241833000,-500.0,5.524e-05,2]
[426282391,1782241833000,-500.0,5.524e-05,2]
[426282390,1782241833000,-500.0,5.524e-05,2]
[426282388,1782241833000,-500.0,5.524e-05,2]
[426282387,1782241833000,-500.0,5.524e-05,2]
[426282386,1782241833000,-500.0,5.524e-05,2]
[426282389,1782241833000,-500.0,5.524e-05,2]
[426282385,1782241833000,-500.0,5.524e-05,2]
[426282384,1782241833000,-500.0,5.524e-05,2]
[426282393,1782241833000,-500.0,5.524e-05,2]
[426282402,1782241833000,-150.99,7.297e-05,2]
[426282397,1782241833000,-160.0,5.542e-05,2]
[426282399,1782241833000,-250.0,6.076e-05,2]
[426282398,1782241833000,-216.39158367,5.543e-05,2]
[426282396,1782241833000,-500.0,5.524e-05,2]
[426282394,1782241833000,-500.0,5.524e-05,2]
[426282401,1782241833000,-250.0,7.297e-05,2]
[426282400,1782241833000,-250.0,6.076e-05,2]
[426282403,1782241833000,-499.99,7.297e-05,2]
[426282404,1782241833000,-6049.69,7.297e-05,2]
[426282406,1782241833000,-2193.03993954,7.297e-05,2]
[426282405,1782241833000,-1016.87952537,7.297e-05,2]
[426282395,1782241833000,-500.0,5.524e-05,2]
[426282423,1782241838000,-221.5082713,8.219e-05,2]
[426282425,1782241838000,-500.0,8.219e-05,2]
[426282426,1782241838000,-500.0,8.219e-05,2]
[426282427,1782241838000,-500.0,8.219e-05,2]
[426282430,1782241838000,-500.0,8.219e-05,2]
[426282432,1782241838000,-300.0,8.219e-05,2]
[426282429,1782241838000,-500.0,8.219e-05,2]
[426282431,1782241838000,-600.0,8.219e-05,2]
[426282424,1782241838000,-500.0,8.219e-05,2]
[426282428,1782241838000,-500.0,8.219e-05,2]
[426282421,1782241838000,-500.0,8.219e-05,2]
[426282411,1782241838000,-1046.41053509,7.297e-05,2]
[426282417,1782241838000,-14230.06,7.556e-05,2]
[426282434,1782241838000,-500.0,8.219e-05,2]
[426282414,1782241838000,-999.99,7.297e-05,2]
[426282419,1782241838000,-200.0,8.076e-05,2]
[426282415,1782241838000,-9999.99,7.556e-05,2]
[426282413,1782241838000,-9999.99,7.297e-05,2]
[426282418,1782241838000,-299.99,7.556e-05,2]
[426282420,1782241838000,-3138.111365,8.178e-05,2]
[426282416,1782241838000,-9999.99,7.556e-05,2]
[426282412,1782241838000,-61436.42,7.297e-05,2]
[426282422,1782241838000,-500.0,8.219e-05,2]
[426282433,1782241838000,-225.0,8.219e-05,2]
[426282449,1782241838000,-500.0,8.219e-05,2]
[426282435,1782241838000,-606.10651734,8.219e-05,2]
[426282436,1782241838000,-500.0,8.219e-05,2]
[426282460,1782241838000,-500.0,8.219e-05,2]
[426282461,1782241838000,-515.0179115,8.219e-05,2]
[426282459,1782241838000,-150.0,8.219e-05,2]
[426282452,1782241838000,-500.0,8.219e-05,2]
[426282455,1782241838000,-500.0,8.219e-05,2]
[426282456,1782241838000,-500.0,8.219e-05,2]
[426282451,1782241838000,-500.0,8.219e-05,2]
[426282450,1782241838000,-254.48877466,8.219e-05,2]
[426282447,1782241838000,-500.0,8.219e-05,2]
[426282458,1782241838000,-150.0,8.219e-05,2]
[426282454,1782241838000,-500.0,8.219e-05,2]
[426282448,1782241838000,-500.0,8.219e-05,2]
[426282437,1782241838000,-500.0,8.219e-05,2]
[426282457,1782241838000,-561.7488493,8.219e-05,2]
[426282439,1782241838000,-500.0,8.219e-05,2]
[426282438,1782241838000,-500.0,8.219e-05,2]
[426282444,1782241838000,-500.0,8.219e-05,2]
[426282442,1782241838000,-500.0,8.219e-05,2]
[426282441,1782241838000,-500.0,8.219e-05,2]
[426282443,1782241838000,-500.0,8.219e-05,2]
[426282445,1782241838000,-500.0,8.219e-05,2]
[426282446,1782241838000,-500.0,8.219e-05,2]
[426282440,1782241838000,-500.0,8.219e-05,2]
[426282505,1782241839000,-500.0,8.219e-05,2]
[426282500,1782241839000,-500.0,8.219e-05,2]
[426282504,1782241839000,-500.0,8.219e-05,2]
[426282499,1782241839000,-500.0,8.219e-05,2]
[426282508,1782241839000,-500.0,8.219e-05,2]
[426282493,1782241839000,-872.0,8.219e-05,2]
[426282510,1782241839000,-500.0,8.219e-05,2]
[426282498,1782241839000,-872.0,8.219e-05,2]
[426282497,1782241839000,-872.0,8.219e-05,2]
[426282495,1782241839000,-872.0,8.219e-05,2]
[426282511,1782241839000,-500.0,8.219e-05,2]
[426282509,1782241839000,-500.0,8.219e-05,2]
[426282503,1782241839000,-500.0,8.219e-05,2]
[426282513,1782241839000,-500.0,8.219e-05,2]
[426282507,1782241839000,-872.0,8.219e-05,2]
[426282501,1782241839000,-500.0,8.219e-05,2]
[426282506,1782241839000,-500.0,8.219e-05,2]
[426282515,1782241839000,-500.0,8.219e-05,2]
[426282512,1782241839000,-500.0,8.219e-05,2]
[426282522,1782241839000,-406.98018119,8.219e-05,2]
[426282517,1782241839000,-872.0,8.219e-05,2]
[426282523,1782241839000,-876.3631274,8.219e-05,2]
[426282516,1782241839000,-573.35020874,8.219e-05,2]
[426282514,1782241839000,-500.0,8.219e-05,2]
[426282491,1782241839000,-872.0,8.219e-05,2]
[426282518,1782241839000,-500.0,8.219e-05,2]
[426282520,1782241839000,-500.0,8.219e-05,2]
[426282502,1782241839000,-500.0,8.219e-05,2]
[426282490,1782241839000,-872.0,8.219e-05,2]
[426282474,1782241839000,-872.0,8.219e-05,2]
[426282492,1782241839000,-872.0,8.219e-05,2]
[426282521,1782241839000,-500.0,8.219e-05,2]
[426282464,1782241839000,-500.0,8.219e-05,2]
[426282462,1782241839000,-173.74778307,8.219e-05,2]
[426282463,1782241839000,-500.0,8.219e-05,2]
[426282470,1782241839000,-500.0,8.219e-05,2]
[426282466,1782241839000,-150.0,8.219e-05,2]
[426282468,1782241839000,-500.0,8.219e-05,2]
[426282469,1782241839000,-150.0,8.219e-05,2]
[426282467,1782241839000,-432.38803519,8.219e-05,2]
[426282465,1782241839000,-500.0,8.219e-05,2]
[426282471,1782241839000,-188.21231056,8.219e-05,2]
[426282473,1782241839000,-494.4659239,8.219e-05,2]
[426282483,1782241839000,-872.0,8.219e-05,2]
[426282489,1782241839000,-872.0,8.219e-05,2]
[426282472,1782241839000,-500.0,8.219e-05,2]
[426282478,1782241839000,-872.0,8.219e-05,2]
[426282475,1782241839000,-872.0,8.219e-05,2]
[426282480,1782241839000,-500.0,8.219e-05,2]
[426282481,1782241839000,-872.0,8.219e-05,2]
[426282482,1782241839000,-500.0,8.219e-05,2]
[426282477,1782241839000,-872.0,8.219e-05,2]
[426282476,1782241839000,-872.0,8.219e-05,2]
[426282484,1782241839000,-500.0,8.219e-05,2]
[426282486,1782241839000,-872.0,8.219e-05,2]
[426282496,1782241839000,-872.0,8.219e-05,2]
[426282487,1782241839000,-872.0,8.219e-05,2]
[426282494,1782241839000,-872.0,8.219e-05,2]
[426282488,1782241839000,-872.0,8.219e-05,2]
[426282479,1782241839000,-872.0,8.219e-05,2]
[426282519,1782241839000,-500.0,8.219e-05,2]
[426282579,1782241839000,-279.85919286,0.00011443,2]
[426282533,1782241839000,-383.0,9.276e-05,2]
[426282559,1782241839000,-150.0,0.00010959,2]
[426282557,1782241839000,-150.0,0.00010959,2]
[426282558,1782241839000,-166.66,0.00010959,2]
[426282561,1782241839000,-2700.998,0.00010959,2]
[426282563,1782241839000,-6551.8762088,0.00011099,2]
[426282573,1782241839000,-1955.54,0.00011301,2]
[426282562,1782241839000,-166.66,0.00011068,2]
[426282565,1782241839000,-6551.87620872,0.00011099,2]
[426282572,1782241839000,-166.66,0.00011288,2]
[426282564,1782241839000,-6551.87620872,0.00011099,2]
[426282571,1782241839000,-4353.17154299,0.00011238,2]
[426282566,1782241839000,-6551.87620872,0.00011099,2]
[426282567,1782241839000,-6551.87620872,0.00011099,2]
[426282556,1782241839000,-331.81257487,0.0001089,2]
[426282568,1782241839000,-6551.87620872,0.00011099,2]
[426282570,1782241839000,-166.66,0.00011178,2]
[426282574,1782241839000,-389527.5,0.00011338,2]
[426282576,1782241839000,-350.0,0.00011341,2]
[426282575,1782241839000,-1770.4488458,0.00011338,2]
[426282577,1782241839000,-166.66,0.00011397,2]
[426282586,1782241839000,-213.4939266,0.00011537,2]
[426282578,1782241839000,-169.88515665,0.00011443,2]
[426282585,1782241839000,-319.70669954,0.00011537,2]
[426282581,1782241839000,-350.0,0.00011453,2]
[426282583,1782241839000,-4353.17154297,0.00011509,2]
[426282580,1782241839000,-220.69093554,0.00011443,2]
[426282584,1782241839000,-346.3624456,0.00011537,2]
[426282524,1782241839000,-1955.54,8.219e-05,2]
[426282569,1782241839000,-166.66,0.00011126,2]
[426282552,1782241839000,-17782.9253,0.00010517,2]
[426282582,1782241839000,-166.66,0.00011507,2]
[426282553,1782241839000,-199.5,0.00010524,2]
[426282527,1782241839000,-2437.12,8.865e-05,2]
[426282528,1782241839000,-1000.0,9.04e-05,2]
[426282532,1782241839000,-3562.0,9.276e-05,2]
[426282525,1782241839000,-174.87,8.219e-05,2]
[426282526,1782241839000,-971.3,8.219e-05,2]
[426282534,1782241839000,-1277.0,9.276e-05,2]
[426282529,1782241839000,-500.0,9.063e-05,2]
[426282530,1782241839000,-19007.83654062,9.17e-05,2]
[426282555,1782241839000,-166.66,0.00010811,2]
[426282535,1782241839000,-1229.0,9.276e-05,2]
[426282536,1782241839000,-6083.0,9.276e-05,2]
[426282542,1782241839000,-13042.86365523,9.757e-05,2]
[426282540,1782241839000,-1000.0,9.345e-05,2]
[426282545,1782241839000,-523.24680201,0.00010131,2]
[426282531,1782241839000,-1955.54,9.247e-05,2]
[426282541,1782241839000,-166.66,9.55e-05,2]
[426282560,1782241839000,-189.581,0.00010959,2]
[426282539,1782241839000,-157.97,9.342e-05,2]
[426282554,1782241839000,-1000.0,0.00010617,2]
[426282551,1782241839000,-5570.4599,0.00010517,2]
[426282549,1782241839000,-350.21776558,0.00010409,2]
[426282548,1782241839000,-1254.41808677,0.00010274,2]
[426282550,1782241839000,-166.66,0.00010496,2]
[426282543,1782241839000,-166.66,9.865e-05,2]
[426282537,1782241839000,-1224.0,9.276e-05,2]